[Event "Titled Tuesday Blitz July 05 Late 2022"]
[White "Tari, Aryan"]
[Black "Araujo Sanchez, Josue"]
[WhiteFideId "1510045"]
[BlackFideId "6416896"]
[WhiteElo "2612"]
[BlackElo "2358"]
[Result "1-0"]
[Round "05"]
[TimeControl "180+1"]
[Date "2022.07.05"]
[WhiteClock "0:00:21"]
[BlackClock "0:00:17"]

1. c4 {[%clk 0:02:52]}  c5 {[%clk 0:02:49]} 2. g3 {[%clk 0:02:51]}  g6 {[%clk 0:02:48]} 3. Bg2 {[%clk 0:02:52]}  Bg7 {[%clk 0:02:48]} 4. Nc3 {[%clk 0:02:52]}  Nf6 {[%clk 0:02:49]} 5. e3 {[%clk 0:02:42]}  O-O {[%clk 0:02:49]} 6. Nge2 {[%clk 0:02:43]}  Nc6 {[%clk 0:02:49]} 7. O-O {[%clk 0:02:39]}  d6 {[%clk 0:02:50]} 8. h3 {[%clk 0:02:38]}  Bd7 {[%clk 0:02:49]} 9. d4 {[%clk 0:02:37]}  a6 {[%clk 0:02:47]} 10. b3 {[%clk 0:02:26]}  Rb8 {[%clk 0:02:42]} 11. a4 {[%clk 0:01:51]}  Qc8 {[%clk 0:02:30]} 12. Kh2 {[%clk 0:01:50]}  Nb4 {[%clk 0:02:29]} 13. a5 {[%clk 0:01:34]}  Bf5 {[%clk 0:02:28]} 14. e4 {[%clk 0:01:26]}  cxd4 {[%clk 0:02:15]} 15. Nxd4 {[%clk 0:01:26]}  Bd7 {[%clk 0:02:16]} 16. Be3 {[%clk 0:01:26]}  Nc6 {[%clk 0:02:13]} 17. Nd5 {[%clk 0:01:26]}  Nxd5 {[%clk 0:02:04]} 18. exd5 {[%clk 0:01:26]}  Nxd4 {[%clk 0:01:58]} 19. Bxd4 {[%clk 0:01:27]}  Bxd4 {[%clk 0:01:58]} 20. Qxd4 {[%clk 0:01:28]}  Qc5 {[%clk 0:01:57]} 21. Qh4 {[%clk 0:01:14]}  e5 {[%clk 0:01:50]} 22. dxe6 {[%clk 0:00:52]}  fxe6 {[%clk 0:01:48]} 23. Ra2 {[%clk 0:00:52]}  Rf7 {[%clk 0:01:46]} 24. Qe4 {[%clk 0:00:48]}  Qb4 {[%clk 0:01:43]} 25. Qe3 {[%clk 0:00:43]}  Rbf8 {[%clk 0:01:39]} 26. Rd2 {[%clk 0:00:43]}  Bc8 {[%clk 0:01:26]} 27. Rfd1 {[%clk 0:00:41]}  Qxa5 {[%clk 0:01:25]} 28. f4 {[%clk 0:00:40]}  e5 {[%clk 0:01:25]} 29. Bd5 {[%clk 0:00:36]}  exf4 {[%clk 0:01:25]} 30. gxf4 {[%clk 0:00:30]}  Kg7 {[%clk 0:01:20]} 31. Bxf7 {[%clk 0:00:29]}  Rxf7 {[%clk 0:01:21]} 32. Rxd6 {[%clk 0:00:29]}  Bf5 {[%clk 0:01:09]} 33. Qe5+ {[%clk 0:00:26]}  Qxe5 {[%clk 0:01:09]} 34. fxe5 {[%clk 0:00:26]}  Re7 {[%clk 0:01:10]} 35. Re1 {[%clk 0:00:25]}  h5 {[%clk 0:01:03]} 36. c5 {[%clk 0:00:25]}  Bd7 {[%clk 0:01:00]} 37. b4 {[%clk 0:00:25]}  Bc6 {[%clk 0:00:57]} 38. h4 {[%clk 0:00:22]}  Rf7 {[%clk 0:00:53]} 39. Re2 {[%clk 0:00:22]}  Rf4 {[%clk 0:00:48]} 40. e6 {[%clk 0:00:22]}  Rxh4+ {[%clk 0:00:47]} 41. Kg3 {[%clk 0:00:22]}  Rg4+ {[%clk 0:00:48]} 42. Kh3 {[%clk 0:00:22]}  Be8 {[%clk 0:00:45]} 43. e7 {[%clk 0:00:20]}  Rxb4 {[%clk 0:00:41]} 44. Rd8 {[%clk 0:00:19]}  Kf7 {[%clk 0:00:34]} 45. Rb8 {[%clk 0:00:20]}  Bd7+ {[%clk 0:00:29]} 46. Kh2 {[%clk 0:00:20]}  Rh4+ {[%clk 0:00:28]} 47. Kg1 {[%clk 0:00:21]}  Rg4+ {[%clk 0:00:24]} 48. Kf2 {[%clk 0:00:21]}  Rf4+ {[%clk 0:00:18]} 49. Ke1 {[%clk 0:00:21]}  Rf5 {[%clk 0:00:19]} 50. e8=Q+ {[%clk 0:00:21]}  Bxe8 {[%clk 0:00:20]} 51. Rbxe8 {[%clk 0:00:19]}  Rxc5 {[%clk 0:00:20]} 52. R8e7+ {[%clk 0:00:19]}  Kf6 {[%clk 0:00:20]} 53. Rxb7 {[%clk 0:00:20]}  Rc1+ {[%clk 0:00:20]} 54. Kf2 {[%clk 0:00:20]}  Rc6 {[%clk 0:00:21]} 55. Reb2 {[%clk 0:00:20]}  Kg5 {[%clk 0:00:21]} 56. R7b6 {[%clk 0:00:20]}  Rc4 {[%clk 0:00:21]} 57. Rxa6 {[%clk 0:00:20]}  Rf4+ {[%clk 0:00:20]} 58. Kg2 {[%clk 0:00:20]}  Rg4+ {[%clk 0:00:20]} 59. Kh1 {[%clk 0:00:21]}  Rh4+ {[%clk 0:00:21]} 60. Rh2 {[%clk 0:00:21]}  Rc4 {[%clk 0:00:18]} 61. Rg2+ {[%clk 0:00:21]}  Kh4 {[%clk 0:00:17]} 62. Raxg6 {[%clk 0:00:21]}  Kh3 {[%clk 0:00:17]} 63. Rh2# {[%clk 0:00:21]} 1-0


[Site "https://www.chess.com"]

[Event "Titled Tuesday Blitz July 05 Late 2022"]
[White "Zhigalko, Sergei"]
[Black "Papp, Levente"]
[WhiteFideId "13502956"]
[BlackFideId "751243"]
[WhiteElo "2662"]
[BlackElo "2308"]
[Result "1-0"]
[Round "05"]
[TimeControl "180+1"]
[Date "2022.07.05"]
[WhiteClock "0:00:03"]
[BlackClock "0:00:01"]

1. e4 {[%clk 0:03:00]}  g6 {[%clk 0:02:57]} 2. d4 {[%clk 0:03:01]}  Bg7 {[%clk 0:02:58]} 3. Nc3 {[%clk 0:03:01]}  c6 {[%clk 0:02:57]} 4. Nf3 {[%clk 0:03:01]}  d5 {[%clk 0:02:56]} 5. h3 {[%clk 0:02:58]}  Nf6 {[%clk 0:02:36]} 6. Bd3 {[%clk 0:02:58]}  dxe4 {[%clk 0:02:33]} 7. Nxe4 {[%clk 0:02:59]}  O-O {[%clk 0:02:34]} 8. O-O {[%clk 0:02:59]}  Nbd7 {[%clk 0:02:30]} 9. c3 {[%clk 0:02:55]}  e5 {[%clk 0:02:23]} 10. Nxf6+ {[%clk 0:02:13]}  Bxf6 {[%clk 0:02:22]} 11. Bh6 {[%clk 0:02:13]}  Re8 {[%clk 0:02:22]} 12. Bc4 {[%clk 0:01:54]}  exd4 {[%clk 0:01:58]} 13. Qb3 {[%clk 0:01:23]}  Re7 {[%clk 0:01:56]} 14. Rfe1 {[%clk 0:01:13]}  Nc5 {[%clk 0:01:40]} 15. Qa3 {[%clk 0:01:06]}  Rxe1+ {[%clk 0:01:32]} 16. Rxe1 {[%clk 0:01:06]}  Ne6 {[%clk 0:01:33]} 17. cxd4 {[%clk 0:01:00]}  Bg7 {[%clk 0:01:05]} 18. Qe3 {[%clk 0:00:46]}  Bxh6 {[%clk 0:01:01]} 19. Qxh6 {[%clk 0:00:46]}  Qf6 {[%clk 0:00:58]} 20. Ne5 {[%clk 0:00:22]}  b5 {[%clk 0:00:35]} 21. Bb3 {[%clk 0:00:22]}  a5 {[%clk 0:00:06]} 22. Nxc6 {[%clk 0:00:20]}  Bd7 {[%clk 0:00:05]} 23. Ne5 {[%clk 0:00:18]}  Be8 {[%clk 0:00:06]} 24. Ng4 {[%clk 0:00:16]}  Qxd4 {[%clk 0:00:04]} 25. Qh4 {[%clk 0:00:12]}  Kg7 {[%clk 0:00:03]} 26. Qh6+ {[%clk 0:00:11]}  Kg8 {[%clk 0:00:03]} 27. Qh4 {[%clk 0:00:08]}  Kg7 {[%clk 0:00:03]} 28. Bxe6 {[%clk 0:00:08]}  fxe6 {[%clk 0:00:03]} 29. Rxe6 {[%clk 0:00:07]}  Bf7 {[%clk 0:00:02]} 30. Re7 {[%clk 0:00:05]}  h5 {[%clk 0:00:02]} 31. Rxf7+ {[%clk 0:00:03]}  Kh8 {[%clk 0:00:01]} 32. Qf6+ {[%clk 0:00:03]} 1-0


[Site "https://www.chess.com"]

[Event "Titled Tuesday Blitz July 05 Late 2022"]
[White "Zlatin, Alexander"]
[Black "Janturin, Artur"]
[WhiteFideId "2810549"]
[BlackFideId "4130022"]
[WhiteElo "2228"]
[BlackElo "2391"]
[Result "0-1"]
[Round "05"]
[TimeControl "180+1"]
[Date "2022.07.06"]
[WhiteClock "0:00:01"]
[BlackClock "0:00:03"]

1. e4 {[%clk 0:03:00]}  a6 {[%clk 0:02:57]} 2. d4 {[%clk 0:02:54]}  b5 {[%clk 0:02:56]} 3. Bd3 {[%clk 0:02:45]}  Bb7 {[%clk 0:02:56]} 4. Nf3 {[%clk 0:02:41]}  Nf6 {[%clk 0:02:56]} 5. Bg5 {[%clk 0:02:40]}  Nxe4 {[%clk 0:02:51]} 6. Bh4 {[%clk 0:02:08]}  Nf6 {[%clk 0:02:26]} 7. O-O {[%clk 0:02:08]}  e6 {[%clk 0:02:24]} 8. Nbd2 {[%clk 0:02:04]}  Be7 {[%clk 0:02:23]} 9. Ne5 {[%clk 0:02:01]}  d6 {[%clk 0:02:20]} 10. Ng4 {[%clk 0:02:01]}  Nxg4 {[%clk 0:02:16]} 11. Bxe7 {[%clk 0:01:58]}  Qxe7 {[%clk 0:02:06]} 12. Qxg4 {[%clk 0:01:58]}  Qf6 {[%clk 0:01:49]} 13. c3 {[%clk 0:01:55]}  Nd7 {[%clk 0:01:44]} 14. a4 {[%clk 0:01:52]}  bxa4 {[%clk 0:01:13]} 15. Rxa4 {[%clk 0:01:48]}  O-O {[%clk 0:01:13]} 16. Rfa1 {[%clk 0:01:40]}  Rfb8 {[%clk 0:01:12]} 17. Nc4 {[%clk 0:01:32]}  Bd5 {[%clk 0:00:54]} 18. b4 {[%clk 0:01:22]}  Bxc4 {[%clk 0:00:26]} 19. Bxc4 {[%clk 0:01:20]}  Nb6 {[%clk 0:00:27]} 20. Rxa6 {[%clk 0:01:16]}  Rxa6 {[%clk 0:00:25]} 21. Bxa6 {[%clk 0:01:17]}  Ra8 {[%clk 0:00:23]} 22. Qe2 {[%clk 0:01:11]}  g6 {[%clk 0:00:20]} 23. h3 {[%clk 0:01:04]}  Qf4 {[%clk 0:00:19]} 24. g3 {[%clk 0:00:43]}  Qf5 {[%clk 0:00:19]} 25. Kg2 {[%clk 0:00:39]}  Qd5+ {[%clk 0:00:19]} 26. Kh2 {[%clk 0:00:38]}  Qg5 {[%clk 0:00:14]} 27. Qd3 {[%clk 0:00:34]}  Qf6 {[%clk 0:00:14]} 28. Kg1 {[%clk 0:00:31]}  h5 {[%clk 0:00:14]} 29. h4 {[%clk 0:00:26]}  Kg7 {[%clk 0:00:13]} 30. Ra5 {[%clk 0:00:23]}  Nd5 {[%clk 0:00:12]} 31. Bc4 {[%clk 0:00:19]}  Nb6 {[%clk 0:00:11]} 32. Bb5 {[%clk 0:00:16]}  Qe7 {[%clk 0:00:05]} 33. Rxa8 {[%clk 0:00:10]}  Nxa8 {[%clk 0:00:05]} 34. Bc6 {[%clk 0:00:08]}  Nb6 {[%clk 0:00:05]} 35. c4 {[%clk 0:00:07]}  Qd8 {[%clk 0:00:04]} 36. d5 {[%clk 0:00:04]}  e5 {[%clk 0:00:03]} 37. c5 {[%clk 0:00:04]}  Nc8 {[%clk 0:00:04]} 38. Qe4 {[%clk 0:00:03]}  Ne7 {[%clk 0:00:03]} 39. Qc4 {[%clk 0:00:02]}  Qb8 {[%clk 0:00:03]} 40. f4 {[%clk 0:00:02]}  f6 {[%clk 0:00:03]} 41. fxe5 {[%clk 0:00:02]}  fxe5 {[%clk 0:00:03]} 42. Kg2 {[%clk 0:00:01]}  Qg8 {[%clk 0:00:03]} 43. Kh3 {[%clk 0:00:01]}  Nxc6 {[%clk 0:00:03]} 0-1


[Site "https://www.chess.com"]

[Event "Titled Tuesday Blitz July 05 Late 2022"]
[White "Adewumi, Tanitoluwa"]
[Black "Rosenberg, Evan S"]
[WhiteFideId "30966396"]
[BlackFideId "2019299"]
[WhiteElo "2573"]
[BlackElo "2281"]
[Result "1-0"]
[Round "06"]
[TimeControl "180+1"]
[Date "2022.07.06"]
[WhiteClock "0:00:04"]
[BlackClock "0:00:01"]

1. e4 {[%clk 0:02:50]}  e6 {[%clk 0:02:58]} 2. d4 {[%clk 0:01:55]}  d5 {[%clk 0:02:56]} 3. Nc3 {[%clk 0:01:48]}  Bb4 {[%clk 0:02:55]} 4. e5 {[%clk 0:01:43]}  c5 {[%clk 0:02:55]} 5. a3 {[%clk 0:01:42]}  Bxc3+ {[%clk 0:02:55]} 6. bxc3 {[%clk 0:01:42]}  Ne7 {[%clk 0:02:56]} 7. Nf3 {[%clk 0:01:39]}  b6 {[%clk 0:02:55]} 8. Bb5+ {[%clk 0:01:30]}  Bd7 {[%clk 0:02:55]} 9. Bd3 {[%clk 0:01:30]}  c4 {[%clk 0:02:29]} 10. Be2 {[%clk 0:01:20]}  Ba4 {[%clk 0:02:30]} 11. O-O {[%clk 0:01:18]}  Na6 {[%clk 0:02:30]} 12. Nh4 {[%clk 0:01:11]}  Ng6 {[%clk 0:02:25]} 13. Nf3 {[%clk 0:00:54]}  h6 {[%clk 0:02:21]} 14. g3 {[%clk 0:00:53]}  Nc7 {[%clk 0:02:17]} 15. Ne1 {[%clk 0:00:50]}  Nb5 {[%clk 0:02:15]} 16. Bd2 {[%clk 0:00:48]}  Qc7 {[%clk 0:01:50]} 17. f4 {[%clk 0:00:42]}  a5 {[%clk 0:01:47]} 18. h4 {[%clk 0:00:33]}  Ne7 {[%clk 0:01:41]} 19. h5 {[%clk 0:00:24]}  g6 {[%clk 0:01:40]} 20. Ng2 {[%clk 0:00:20]}  Nf5 {[%clk 0:01:34]} 21. hxg6 {[%clk 0:00:17]}  fxg6 {[%clk 0:01:33]} 22. Rf3 {[%clk 0:00:16]}  h5 {[%clk 0:01:23]} 23. Nh4 {[%clk 0:00:13]}  Nxh4 {[%clk 0:01:22]} 24. gxh4 {[%clk 0:00:14]}  O-O-O {[%clk 0:01:22]} 25. Rg3 {[%clk 0:00:13]}  Rhg8 {[%clk 0:01:19]} 26. Rg5 {[%clk 0:00:13]}  Rdf8 {[%clk 0:01:16]} 27. Kf2 {[%clk 0:00:12]}  Rf5 {[%clk 0:00:57]} 28. Ra2 {[%clk 0:00:11]}  Rxg5 {[%clk 0:00:56]} 29. hxg5 {[%clk 0:00:11]}  Rf8 {[%clk 0:00:56]} 30. Kg3 {[%clk 0:00:10]}  Qf7 {[%clk 0:00:44]} 31. Qf1 {[%clk 0:00:08]}  Qf5 {[%clk 0:00:42]} 32. Qh3 {[%clk 0:00:08]}  h4+ {[%clk 0:00:39]} 33. Kg2 {[%clk 0:00:03]}  Bxc2 {[%clk 0:00:37]} 34. Bg4 {[%clk 0:00:03]}  Qd3 {[%clk 0:00:22]} 35. Qxd3 {[%clk 0:00:02]}  cxd3 {[%clk 0:00:15]} 36. Bxe6+ {[%clk 0:00:03]}  Kc7 {[%clk 0:00:15]} 37. Bxd5 {[%clk 0:00:04]}  Na7 {[%clk 0:00:13]} 38. Be4 {[%clk 0:00:04]}  Nc6 {[%clk 0:00:11]} 39. Bxg6 {[%clk 0:00:04]}  b5 {[%clk 0:00:09]} 40. Rxc2 {[%clk 0:00:04]}  dxc2 {[%clk 0:00:09]} 41. Bxc2 {[%clk 0:00:05]}  Ne7 {[%clk 0:00:08]} 42. Be4 {[%clk 0:00:05]}  b4 {[%clk 0:00:07]} 43. axb4 {[%clk 0:00:05]}  axb4 {[%clk 0:00:08]} 44. c4 {[%clk 0:00:05]}  b3 {[%clk 0:00:08]} 45. Bc3 {[%clk 0:00:05]}  Rb8 {[%clk 0:00:06]} 46. g6 {[%clk 0:00:06]}  b2 {[%clk 0:00:06]} 47. Bb1 {[%clk 0:00:05]}  Nc6 {[%clk 0:00:06]} 48. d5 {[%clk 0:00:05]}  Nb4 {[%clk 0:00:05]} 49. e6 {[%clk 0:00:04]}  Na6 {[%clk 0:00:03]} 50. Be5+ {[%clk 0:00:05]}  Kc8 {[%clk 0:00:03]} 51. Bxb8 {[%clk 0:00:06]}  Kxb8 {[%clk 0:00:02]} 52. g7 {[%clk 0:00:07]}  Nc5 {[%clk 0:00:03]} 53. g8=Q+ {[%clk 0:00:07]}  Kb7 {[%clk 0:00:04]} 54. Qf8 {[%clk 0:00:08]}  Na4 {[%clk 0:00:03]} 55. Qc5 {[%clk 0:00:09]}  Nxc5 {[%clk 0:00:03]} 56. Kh3 {[%clk 0:00:09]}  Nb3 {[%clk 0:00:04]} 57. Kxh4 {[%clk 0:00:09]}  Nd2 {[%clk 0:00:05]} 58. Bc2 {[%clk 0:00:09]}  Nxc4 {[%clk 0:00:04]} 59. e7 {[%clk 0:00:09]}  Nd6 {[%clk 0:00:04]} 60. f5 {[%clk 0:00:09]}  Kc7 {[%clk 0:00:04]} 61. f6 {[%clk 0:00:09]}  Kd7 {[%clk 0:00:04]} 62. Kg5 {[%clk 0:00:10]}  Nf7+ {[%clk 0:00:03]} 63. Kg6 {[%clk 0:00:10]}  Ne5+ {[%clk 0:00:03]} 64. Kg7 {[%clk 0:00:11]}  Ke8 {[%clk 0:00:03]} 65. Ba4+ {[%clk 0:00:07]}  Nd7 {[%clk 0:00:03]} 66. f7+ {[%clk 0:00:07]}  Kxe7 {[%clk 0:00:03]} 67. Bxd7 {[%clk 0:00:08]}  Kxd7 {[%clk 0:00:04]} 68. f8=Q {[%clk 0:00:07]}  b1=Q {[%clk 0:00:04]} 69. Qf7+ {[%clk 0:00:08]}  Kd6 {[%clk 0:00:04]} 70. Qe6+ {[%clk 0:00:09]}  Kc7 {[%clk 0:00:03]} 71. Qc6+ {[%clk 0:00:09]}  Kd8 {[%clk 0:00:03]} 72. Qd6+ {[%clk 0:00:09]}  Kc8 {[%clk 0:00:03]} 73. Kf7 {[%clk 0:00:09]}  Qh7+ {[%clk 0:00:03]} 74. Ke6 {[%clk 0:00:09]}  Qg6+ {[%clk 0:00:02]} 75. Ke5 {[%clk 0:00:09]}  Qg3+ {[%clk 0:00:01]} 76. Ke6 {[%clk 0:00:10]}  Qg6+ {[%clk 0:00:02]} 77. Ke7 {[%clk 0:00:10]}  Qg7+ {[%clk 0:00:02]} 78. Ke8 {[%clk 0:00:10]}  Qg8+ {[%clk 0:00:01]} 79. Ke7 {[%clk 0:00:07]}  Qg7+ {[%clk 0:00:01]} 80. Ke8 {[%clk 0:00:08]}  Qg8+ {[%clk 0:00:01]} 81. Qf8 {[%clk 0:00:08]}  Qxd5 {[%clk 0:00:01]} 82. Qg7 {[%clk 0:00:04]} 1-0


[Site "https://www.chess.com"]

[Event "Titled Tuesday Blitz July 05 Late 2022"]
[White "Bjelobrk, Igor"]
[Black "Rios Escobar, Adan"]
[WhiteFideId "4300726"]
[BlackFideId "3403645"]
[WhiteElo "2335"]
[BlackElo "2485"]
[Result "1/2-1/2"]
[Round "06"]
[TimeControl "180+1"]
[Date "2022.07.06"]
[WhiteClock "0:00:34"]
[BlackClock "0:00:05"]

1. c4 {[%clk 0:03:00]}  Nf6 {[%clk 0:02:34]} 2. Nf3 {[%clk 0:02:55]}  g6 {[%clk 0:02:34]} 3. Nc3 {[%clk 0:02:53]}  Bg7 {[%clk 0:02:34]} 4. e4 {[%clk 0:02:53]}  d6 {[%clk 0:02:33]} 5. d4 {[%clk 0:02:52]}  O-O {[%clk 0:02:33]} 6. h3 {[%clk 0:02:51]}  c6 {[%clk 0:01:55]} 7. Be3 {[%clk 0:02:49]}  Na6 {[%clk 0:01:51]} 8. Be2 {[%clk 0:02:40]}  e5 {[%clk 0:01:50]} 9. dxe5 {[%clk 0:02:39]}  dxe5 {[%clk 0:01:50]} 10. Qxd8 {[%clk 0:02:38]}  Rxd8 {[%clk 0:01:51]} 11. O-O {[%clk 0:02:38]}  Nh5 {[%clk 0:01:44]} 12. Rfd1 {[%clk 0:02:35]}  Be6 {[%clk 0:01:38]} 13. Ng5 {[%clk 0:02:30]}  Nf4 {[%clk 0:01:35]} 14. Nxe6 {[%clk 0:02:21]}  Nxe6 {[%clk 0:01:34]} 15. a3 {[%clk 0:02:13]}  Nd4 {[%clk 0:01:31]} 16. b4 {[%clk 0:01:43]}  Nc2 {[%clk 0:01:21]} 17. Rxd8+ {[%clk 0:01:38]}  Rxd8 {[%clk 0:01:21]} 18. Rd1 {[%clk 0:01:39]}  Rxd1+ {[%clk 0:00:58]} 19. Nxd1 {[%clk 0:01:40]}  Nxe3 {[%clk 0:00:58]} 20. Nxe3 {[%clk 0:01:40]}  Nc7 {[%clk 0:00:54]} 21. c5 {[%clk 0:01:39]}  b5 {[%clk 0:00:48]} 22. Bg4 {[%clk 0:01:29]}  Ne6 {[%clk 0:00:36]} 23. Bxe6 {[%clk 0:01:29]}  fxe6 {[%clk 0:00:37]} 24. Kf1 {[%clk 0:01:16]}  Bh6 {[%clk 0:00:36]} 25. Ng4 {[%clk 0:01:14]}  Bg7 {[%clk 0:00:23]} 26. Ke2 {[%clk 0:01:14]}  h5 {[%clk 0:00:20]} 27. Nh2 {[%clk 0:01:12]}  Kf7 {[%clk 0:00:19]} 28. Nf3 {[%clk 0:01:11]}  Kf6 {[%clk 0:00:19]} 29. g4 {[%clk 0:01:10]}  hxg4 {[%clk 0:00:18]} 30. hxg4 {[%clk 0:01:10]}  Bh6 {[%clk 0:00:13]} 31. Ne1 {[%clk 0:01:03]}  Bc1 {[%clk 0:00:11]} 32. Nd3 {[%clk 0:01:03]}  Bh6 {[%clk 0:00:07]} 33. Kf3 {[%clk 0:00:51]}  Bg5 {[%clk 0:00:07]} 34. Kg3 {[%clk 0:00:51]}  Bd2 {[%clk 0:00:07]} 35. Kh4 {[%clk 0:00:43]}  a5 {[%clk 0:00:05]} 36. g5+ {[%clk 0:00:41]}  Bxg5+ {[%clk 0:00:05]} 37. Kg4 {[%clk 0:00:41]}  Bd2 {[%clk 0:00:06]} 38. Kh4 {[%clk 0:00:34]}  a4 {[%clk 0:00:03]} 39. Kg4 {[%clk 0:00:34]}  Bc3 {[%clk 0:00:02]} 40. Kh4 {[%clk 0:00:34]}  Bd2 {[%clk 0:00:03]} 41. Kg4 {[%clk 0:00:34]}  Bc3 {[%clk 0:00:04]} 42. Kh4 {[%clk 0:00:35]}  Bd4 {[%clk 0:00:04]} 43. Kg4 {[%clk 0:00:34]}  Bc3 {[%clk 0:00:05]} 1/2-1/2


[Site "https://www.chess.com"]

[Event "Titled Tuesday Blitz July 05 Late 2022"]
[White "Cardoso Cardoso, Jose Gabriel"]
[Black "Noboa Silva, Kevin"]
[WhiteFideId "4430492"]
[BlackFideId "3618471"]
[WhiteElo "2485"]
[BlackElo "2172"]
[Result "1-0"]
[Round "06"]
[TimeControl "180+1"]
[Date "2022.07.05"]
[WhiteClock "0:00:05"]
[BlackClock "0:00:01"]

1. Nf3 {[%clk 0:03:00]}  Nf6 {[%clk 0:02:58]} 2. b3 {[%clk 0:03:00]}  b6 {[%clk 0:02:58]} 3. g3 {[%clk 0:02:56]}  Bb7 {[%clk 0:02:58]} 4. Bg2 {[%clk 0:02:57]}  e6 {[%clk 0:02:58]} 5. Bb2 {[%clk 0:02:48]}  c5 {[%clk 0:02:58]} 6. O-O {[%clk 0:02:47]}  Be7 {[%clk 0:02:57]} 7. c4 {[%clk 0:02:47]}  a6 {[%clk 0:02:56]} 8. e3 {[%clk 0:02:47]}  O-O {[%clk 0:02:55]} 9. Qe2 {[%clk 0:02:47]}  d6 {[%clk 0:02:55]} 10. d3 {[%clk 0:02:45]}  Qc7 {[%clk 0:02:55]} 11. Nc3 {[%clk 0:02:45]}  Re8 {[%clk 0:02:55]} 12. Rac1 {[%clk 0:02:39]}  Nbd7 {[%clk 0:02:55]} 13. Rfd1 {[%clk 0:02:38]}  Rac8 {[%clk 0:02:55]} 14. Bh3 {[%clk 0:02:37]}  Qb8 {[%clk 0:02:51]} 15. Ng5 {[%clk 0:02:37]}  h6 {[%clk 0:02:47]} 16. Nge4 {[%clk 0:02:34]}  Qa8 {[%clk 0:02:44]} 17. f4 {[%clk 0:02:20]}  b5 {[%clk 0:02:40]} 18. Bg2 {[%clk 0:02:09]}  b4 {[%clk 0:02:37]} 19. Nxf6+ {[%clk 0:02:09]}  Bxf6 {[%clk 0:02:36]} 20. Bxb7 {[%clk 0:02:07]}  Qxb7 {[%clk 0:02:35]} 21. Ne4 {[%clk 0:02:07]}  Bxb2 {[%clk 0:02:26]} 22. Qxb2 {[%clk 0:02:07]}  Qc6 {[%clk 0:02:20]} 23. Qg2 {[%clk 0:02:05]}  a5 {[%clk 0:02:14]} 24. d4 {[%clk 0:02:05]}  cxd4 {[%clk 0:02:10]} 25. exd4 {[%clk 0:02:03]}  d5 {[%clk 0:02:07]} 26. Nf2 {[%clk 0:02:00]}  dxc4 {[%clk 0:02:03]} 27. Qxc6 {[%clk 0:01:58]}  Rxc6 {[%clk 0:02:04]} 28. bxc4 {[%clk 0:01:57]}  Rec8 {[%clk 0:02:04]} 29. c5 {[%clk 0:01:57]}  Nf6 {[%clk 0:02:03]} 30. Nd3 {[%clk 0:01:56]}  Rd8 {[%clk 0:01:56]} 31. Ne5 {[%clk 0:01:56]}  Rc7 {[%clk 0:01:54]} 32. Kf2 {[%clk 0:01:39]}  Ne4+ {[%clk 0:01:47]} 33. Ke3 {[%clk 0:01:37]}  Nc3 {[%clk 0:01:47]} 34. Rxc3 {[%clk 0:01:32]}  bxc3 {[%clk 0:01:47]} 35. Rc1 {[%clk 0:01:33]}  f6 {[%clk 0:01:45]} 36. Nc4 {[%clk 0:01:31]}  Rb8 {[%clk 0:01:33]} 37. Nb6 {[%clk 0:01:27]}  Kf7 {[%clk 0:01:24]} 38. Kd3 {[%clk 0:01:21]}  e5 {[%clk 0:01:19]} 39. fxe5 {[%clk 0:01:11]}  fxe5 {[%clk 0:01:19]} 40. Rxc3 {[%clk 0:01:00]}  exd4 {[%clk 0:01:16]} 41. Kxd4 {[%clk 0:01:00]}  Rd8+ {[%clk 0:01:16]} 42. Kc4 {[%clk 0:00:59]}  Rd2 {[%clk 0:01:13]} 43. a4 {[%clk 0:00:55]}  Rb2 {[%clk 0:01:12]} 44. Kd4 {[%clk 0:00:48]}  Rb4+ {[%clk 0:01:01]} 45. Rc4 {[%clk 0:00:36]}  Rb2 {[%clk 0:00:57]} 46. Kd5 {[%clk 0:00:27]}  Rd2+ {[%clk 0:00:35]} 47. Rd4 {[%clk 0:00:26]}  Rc2 {[%clk 0:00:33]} 48. Nc4 {[%clk 0:00:23]}  Rxh2 {[%clk 0:00:26]} 49. Kd6 {[%clk 0:00:20]}  Ra7 {[%clk 0:00:22]} 50. c6 {[%clk 0:00:20]}  Rg2 {[%clk 0:00:16]} 51. c7 {[%clk 0:00:18]}  Rxc7 {[%clk 0:00:11]} 52. Kxc7 {[%clk 0:00:19]}  Rxg3 {[%clk 0:00:11]} 53. Nxa5 {[%clk 0:00:19]}  h5 {[%clk 0:00:11]} 54. Nc6 {[%clk 0:00:19]}  Ra3 {[%clk 0:00:09]} 55. a5 {[%clk 0:00:18]}  g5 {[%clk 0:00:09]} 56. Kb6 {[%clk 0:00:17]}  h4 {[%clk 0:00:10]} 57. Ne5+ {[%clk 0:00:14]}  Ke6 {[%clk 0:00:07]} 58. Nc4 {[%clk 0:00:13]}  Ra2 {[%clk 0:00:07]} 59. Rg4 {[%clk 0:00:11]}  Kf5 {[%clk 0:00:05]} 60. Ne3+ {[%clk 0:00:10]}  Kg6 {[%clk 0:00:05]} 61. a6 {[%clk 0:00:08]}  h3 {[%clk 0:00:05]} 62. Rg3 {[%clk 0:00:07]}  h2 {[%clk 0:00:04]} 63. Rh3 {[%clk 0:00:07]}  Kf6 {[%clk 0:00:02]} 64. Rxh2 {[%clk 0:00:06]}  Ra3 {[%clk 0:00:01]} 65. Nc4 {[%clk 0:00:05]} 1-0


[Site "https://www.chess.com"]